[Event "22nd Hoogeveen Open 2018"]
[Site "Hoogeveen"]
[Date "2018.10.27"]
[Round "9"]
[White "Van Kooten, Luuk"]
[Black "Biermann, Lenhard"]
[Result "0-1"]
[ECO "C02"]
[WhiteElo "2320"]
[BlackElo "2153"]
[Annotator "NA"]
[PlyCount "58"]
[EventDate "2018.10.20"]
[EventType "swiss"]
[EventCountry "NED"]
[SourceTitle "playchess.com"]
[Source "ChessBase"]
[SourceQuality "1"]
[TimeControl "40/5400+30:1800+30"]

{[%evp 12,51,32,0,32767,32767,32767,32767,0,0,0,0,0,0,0,0,0,-4,0,-10,-18,-25,-6,-36,-21,-51,-26,-25,-18,-25,0,0,0,-261,-290,-381,32767,32767,32767,32767,-220,-1031]} 1. e4 {[%emt 0:00:00]} e6 {[%emt 0:00:00]} 2. d4 {[%emt 0:00:25]} d5 {[%emt 0:00:00]} 3. e5 {[%emt 0:00:24]} c5 {[%emt 0:00:00]} 4. c3 {[%emt 0:00:13]} Nc6 {[%emt 0:00:00]} 5. Nf3 {[%emt 0:00:08]} Nh6 {[%emt 0:00:12]} 6. a3 {[%emt 0:00:53] C02: French: Advance Variation} (6. Bd3 cxd4 7. Bxh6 gxh6 8. cxd4 Bg7 9. O-O f6 10. Re1 O-O 11. Nbd2 Kh8 12. Rc1 fxe5 13. dxe5 Bd7 14. Nb3 {1-0 (62) Ding,L (2718)-Nguyen,N (2614) China 2013}) 6... f6 {[%emt 0:01:27]} 7. exf6 {[%emt 0:07:58] LiveBook: 3 Games} Qxf6 {[%emt 0:00:31]} 8. Bg5 {[%emt 0:03:35]} Qf7 {[%emt 0:00:25]} 9. b4 {[%emt 0:03:30]} cxd4 {[%emt 0:01:36]} 10. cxd4 {[%emt 0:01:06]} Bd6 {[%emt 0:01:16]} 11. b5 {[%emt 0:06:26]} Ne7 {[%emt 0:00:46]} 12. Bd3 {[%emt 0:02:28]} O-O $146 {[%emt 0:01:54]} ({Predecessor:} 12... Ng6 13. O-O O-O {0-1 (43) Szitas,G (2204)-Galyas,M (2457) Budapest 2009}) 13. Nbd2 {[%emt 0:09:40]} Ng6 {[%emt 0:04:45]} 14. O-O {[%emt 0:03:47]} Nf5 {[%emt 0:04:23]} 15. Qe2 {[%emt 0:05:01]} h6 {[%emt 0:03:27]} 16. Be3 {[%emt 0:00:11]} Bd7 {[%emt 0:01:49]} 17. Nb3 {[%emt 0:05:07]} Rae8 {[%emt 0:03:44]} 18. Rac1 {[%emt 0:04:28]} b6 {[%emt 0:03:22]} 19. Bd2 {[%emt 0:04:35]} e5 {[%emt 0:25:50]} 20. dxe5 {[%emt 0:02:02]} Bxe5 {[%emt 0:00:44]} 21. Nxe5 {[%emt 0:07:20]} Nxe5 {[%emt 0:00:09]} 22. Bb4 $2 {[%emt 0:02:35] [#]} (22. Bc3 $1 $11 {and White has nothing to worry.} Nxd3 23. Qxd3) 22... Nh4 $1 {[%emt 0:03:34]} 23. Nd4 {[%emt 0:11:56]} (23. Nd2 $142 Nxg2 24. Kxg2 (24. Bxf8 $2 Nf4 $19)) 23... Nef3+ {[%emt 0:10:16]} 24. Nxf3 {[%emt 0:00:39]} Rxe2 {[%emt 0:00:05]} 25. Bxe2 {[%emt 0:00:03]} Re8 {[%emt 0:01:03]} ({Auf keinen Fall} 25... Nxf3+ 26. Bxf3 Bxb5 27. Bxf8) 26. Rfe1 $19 {[%emt 0:01:18]} (26. Nxh4 Rxe2 27. Rc7) 26... Rxe2 {[%emt 0:07:30]} 27. Rxe2 {[%emt 0:00:26]} Nxf3+ {[%emt 0:00:07]} 28. gxf3 {[%emt 0:00:05]} Bh3 {[%emt 0:00:19]} 29. Rc6 {[%emt 0:02:38]} Qxf3 {[%emt 0:01:08]} 0-1

[Event "22nd Hoogeveen Open 2018"]
[Site "Hoogeveen"]
[Date "2018.10.27"]
[Round "9"]
[White "De Jong, Migchiel"]
[Black "Ingebretsen, Jens E"]
[Result "1-0"]
[ECO "B40"]
[WhiteElo "2309"]
[BlackElo "2160"]
[Annotator "NA"]
[PlyCount "93"]
[EventDate "2018.10.20"]
[EventType "swiss"]
[EventCountry "NED"]
[SourceTitle "playchess.com"]
[Source "ChessBase"]
[SourceQuality "1"]
[TimeControl "40/5400+30:1800+30"]

{[%evp 12,78,14,6,32767,14,14,0,0,0,0,0,0,12,8,0,17,20,58,11,75,72,79,75,87,83,123,96,97,93,108,67,189,172,164,193,191,198,229,220,227,197,306,236,260,256,400,446,32767,32767,32767,32767,32767,486,493,534,492,572,526,32767,32767,32767,32767,32767,32767,32767,32767,331,385]} 1. e4 {[%emt 0:00:00]} c5 {[%emt 0:01:25]} 2. Nf3 {[%emt 0:00:00]} e6 {[%emt 0:00:15]} 3. g3 {[%emt 0:00:13]} Nc6 {[%emt 0:00:56]} 4. Bg2 {[%emt 0:00:06]} d5 {[%emt 0:01:02]} 5. exd5 {[%emt 0:00:20] B40: Sicilian: 2...e6, Unusual lines} exd5 {[%emt 0:00:07]} 6. d4 {[%emt 0:00:36]} Nf6 {[%emt 0:01:40]} 7. O-O {[%emt 0:00:09]} Be7 {[%emt 0:01:10]} 8. Nc3 {[%emt 0:03:25]} (8. dxc5 O-O 9. Nbd2 Bxc5 10. Nb3 Bb6 11. c3 Ne4 12. Be3 Bxe3 13. fxe3 {½-½ (50) Tomashevsky,E (2716)-Najer,E (2679) Doha 2016}) 8... O-O {[%emt 0:01:12]} 9. Be3 {[%emt 0:01:51] LiveBook: 5 Games} Bg4 {[%emt 0:03:26]} 10. h3 {[%emt 0:02:59]} cxd4 {[%emt 0:01:11]} 11. Bxd4 {[%emt 0:00:33]} Be6 {[%emt 0:03:19]} 12. Be3 {[%emt 0:02:05]} Qd7 {[%emt 0:01:09]} 13. Kh2 {[%emt 0:00:34]} Rfd8 $146 {[%emt 0:01:42]} 14. Nd4 {[%emt 0:00:23]} Ne5 {[%emt 0:00:58]} 15. Nce2 {[%emt 0:03:15]} Rac8 {[%emt 0:02:53]} 16. Nxe6 {[%emt 0:06:58]} fxe6 {[%emt 0:00:36]} 17. Bxa7 {[%emt 0:00:47]} Qc7 {[%emt 0:05:23]} 18. Bd4 {[%emt 0:01:10]} Nc6 {[%emt 0:01:10]} 19. c3 {[%emt 0:02:13]} e5 {[%emt 0:00:55]} 20. Be3 {[%emt 0:00:16]} Kh8 {[%emt 0:06:15]} 21. Qb3 {[%emt 0:05:02]} d4 {[%emt 0:02:07]} (21... b5 $16 {is a better defense.}) 22. cxd4 {[%emt 0:02:29]} exd4 {[%emt 0:00:09]} 23. Bf4 {[%emt 0:04:35]} Bd6 {[%emt 0:01:10]} 24. Rad1 {[%emt 0:01:35]} Be5 {[%emt 0:03:14]} 25. Bxe5 {[%emt 0:08:51]} Qxe5 {[%emt 0:00:11]} 26. Rfe1 {[%emt 0:00:17]} ({Weaker is} 26. Qxb7 Qxe2 27. Bxc6 Rb8 $14) 26... Qc5 {[%emt 0:07:32]} (26... Qa5 {is a better defense.} 27. Qxb7 Rc7) 27. Nf4 {[%emt 0:00:52]} Na5 {[%emt 0:00:33]} 28. Qa4 {[%emt 0:01:07]} Nc4 {[%emt 0:16:06]} (28... Qb6 $142 29. b4 Nc4) 29. Ne6 {[%emt 0:00:45]} b5 {[%emt 0:02:23]} 30. Qb3 {[%emt 0:01:01]} Qf5 {[%emt 0:01:37]} 31. Nxd8 {[%emt 0:00:13]} Rxd8 {[%emt 0:00:16]} 32. Kg1 {[%emt 0:01:58]} Qc5 {[%emt 0:07:08]} 33. Re2 {[%emt 0:01:19]} h5 {[%emt 0:01:23]} 34. Qc2 {[%emt 0:02:31]} Qd6 {[%emt 0:02:58]} 35. Qf5 {[%emt 0:01:05]} d3 {[%emt 0:01:19]} 36. Re6 {[%emt 0:00:12]} Qd4 {[%emt 0:00:49]} 37. Be4 {[%emt 0:01:31]} Nd6 {[%emt 0:03:49]} 38. Rxd6 {[%emt 0:00:12]} Rxd6 {[%emt 0:00:08]} 39. Bxd3 {[%emt 0:02:58]} Qxb2 $18 {[%emt 0:02:03]} 40. Qc8+ {[%emt 0:03:32]} Ng8 {[%emt 0:00:24]} 41. Qc5 {[%emt 0:31:05]} Rh6 {[%emt 0:34:32]} 42. Bxb5 {[%emt 0:00:30]} Qxa2 {[%emt 0:00:14]} 43. Rd8 {[%emt 0:00:58]} Qb1+ {[%emt 0:00:59]} 44. Kh2 {[%emt 0:00:37]} h4 {[%emt 0:00:17]} 45. Qd5 {[%emt 0:01:26]} hxg3+ {[%emt 0:01:27]} 46. Kg2 {[%emt 0:00:09]} Qh7 {[%emt 0:01:05]} 47. Bc4 {[%emt 0:00:34]} 1-0

[Event "22nd Hoogeveen Open 2018"]
[Site "Hoogeveen"]
[Date "2018.10.27"]
[Round "9"]
[White "Schippers, Maurice"]
[Black "De Boer, Eelke"]
[Result "0-1"]
[ECO "B91"]
[WhiteElo "2272"]
[BlackElo "2285"]
[Annotator "NA"]
[PlyCount "78"]
[EventDate "2018.10.20"]
[EventType "swiss"]
[EventCountry "NED"]
[SourceTitle "playchess.com"]
[Source "ChessBase"]
[SourceQuality "1"]
[TimeControl "40/5400+30:1800+30"]

{[%evp 9,51,36,11,16,21,32767,32767,32767,32767,0,26,-6,14,-4,-24,-8,15,0,56,54,66,67,57,60,62,66,68,58,60,72,58,74,83,87,98,90,102,47,53,54,58,77,124,91]} 1. e4 {[%emt 0:00:00]} c5 {[%emt 0:00:00]} 2. Nf3 {[%emt 0:00:00]} d6 {[%emt 0:00:00]} 3. d4 {[%emt 0:00:00]} cxd4 {[%emt 0:00:00]} 4. Nxd4 {[%emt 0:00:00]} Nf6 {[%emt 0:00:00]} 5. Nc3 {[%emt 0:01:23]} a6 {[%emt 0:00:04]} 6. g3 {[%emt 0:00:00]} g6 {[%emt 0:00:49]} 7. Bg2 {[%emt 0:00:13]} Bg7 {[%emt 0:00:08]} 8. O-O {[%emt 0:00:14]} O-O {[%emt 0:00:06]} 9. a4 {[%emt 0:01:28]} Nc6 {[%emt 0:03:51] B91: Sicilian Najdorf: 6 g3} 10. Nb3 {[%emt 0:04:14] LiveBook: 3 Games} (10. Nxc6 bxc6 11. e5 dxe5 12. Bxc6 Rb8 13. Qe2 Qd6 14. Bf3 Bf5 15. Rd1 Qc7 16. Qxa6 Bxc2 17. Re1 {0-1 (39) Deepan Chakkravarthy,J (2519)-Paravyan,D (2638) Pardubice 2018}) 10... Bg4 {[%emt 0:15:24]} 11. f3 {[%emt 0:05:17]} Be6 {[%emt 0:01:21]} 12. Nd5 {[%emt 0:06:08]} Bxd5 $146 {[%emt 0:04:46]} ({Predecessor:} 12... Rc8 13. c3 Bxd5 14. exd5 Na5 15. Nxa5 Qxa5 16. f4 Qc5+ 17. Kh1 {½-½ (28) Gueroff,E-Huebner,W Germany 1994}) 13. exd5 {[%emt 0:01:14]} Nb4 {[%emt 0:00:26]} 14. f4 $1 {[%emt 0:02:14]} Rc8 {[%emt 0:01:26]} 15. c3 {[%emt 0:09:13]} Qb6+ {[%emt 0:01:51]} 16. Kh1 $1 {[%emt 0:04:33]} Nd3 $1 {[%emt 0:00:30]} 17. Qxd3 {[%emt 0:00:26]} Qxb3 {[%emt 0:00:07]} 18. Re1 {[%emt 0:02:27]} Rfe8 {[%emt 0:02:14]} 19. Ra3 {[%emt 0:05:13]} Qb6 {[%emt 0:03:13]} 20. a5 {[%emt 0:02:46]} Qc7 {[%emt 0:06:11]} 21. Be3 {[%emt 0:04:06]} Nd7 {[%emt 0:03:48]} 22. Bh3 {[%emt 0:07:37]} Rb8 {[%emt 0:01:28]} 23. b4 {[%emt 0:01:14]} b5 $1 {[%emt 0:17:17]} 24. axb6 {[%emt 0:13:26]} Nxb6 {[%emt 0:00:07]} 25. Bf2 {[%emt 0:01:05]} Ra8 {[%emt 0:05:34]} 26. Bf1 $16 {[%emt 0:08:39]} Rec8 {[%emt 0:06:46]} 27. Bxb6 {[%emt 0:04:07]} Qxb6 {[%emt 0:00:29]} 28. Rxe7 {[%emt 0:00:13]} a5 {[%emt 0:04:28]} 29. bxa5 {[%emt 0:04:41]} Rxa5 {[%emt 0:00:08]} 30. Rxa5 {[%emt 0:00:34]} Qxa5 {[%emt 0:00:05]} 31. c4 {[%emt 0:01:00]} Bf6 {[%emt 0:04:22]} 32. Rd7 {[%emt 0:02:06]} Qc5 {[%emt 0:00:46]} 33. Kg2 {[%emt 0:03:34]} Rb8 {[%emt 0:01:13]} 34. Be2 {[%emt 0:02:09]} Kf8 {[%emt 0:02:25]} 35. f5 {[%emt 0:04:56]} Ke8 {[%emt 0:04:45]} 36. fxg6 {[%emt 0:00:14]} Kxd7 {[%emt 0:03:40]} 37. Qf5+ {[%emt 0:00:05]} Ke7 {[%emt 0:00:12]} 38. gxf7 {[%emt 0:00:39]} Qe3 {[%emt 0:01:53]} 39. Bg4 {[%emt 0:01:19]} Qd2+ {[%emt 0:07:01]} 0-1

[Event "22nd Hoogeveen Open 2018"]
[Site "Hoogeveen"]
[Date "2018.10.27"]
[Round "9"]
[White "Elgersma, Simon"]
[Black "Van Foreest, Machteld"]
[Result "1/2-1/2"]
[ECO "C11"]
[WhiteElo "2237"]
[BlackElo "1934"]
[Annotator "NA"]
[PlyCount "86"]
[EventDate "2018.10.20"]
[EventType "swiss"]
[EventCountry "NED"]
[SourceTitle "playchess.com"]
[Source "ChessBase"]
[SourceQuality "1"]
[TimeControl "40/5400+30:1800+30"]

1. e4 {[%emt 0:00:00]} e6 {[%emt 0:00:00]} 2. d4 {[%emt 0:00:00]} d5 {[%emt 0:00:00]} 3. Nc3 {[%emt 0:00:13]} Nf6 {[%emt 0:00:00]} 4. e5 {[%emt 0:00:06]} Nfd7 {[%emt 0:00:00]} 5. f4 {[%emt 0:00:17]} c5 {[%emt 0:00:00]} 6. Nf3 {[%emt 0:00:07]} Nc6 {[%emt 0:00:00]} 7. Be3 {[%emt 0:00:42]} a6 {[%emt 0:00:00]} 8. Ne2 {[%emt 0:00:06] C11: French: Classical System: 4 e5 and 4 Bg5 dxe4} b5 {[%emt 0:01:57]} 9. c3 {[%emt 0:00:34] LiveBook: 5 Games} (9. g3 Qa5+ 10. Kf2 Be7 11. h4 O-O 12. c3 b4 13. Qc2 bxc3 14. bxc3 f5 15. Nc1 Rb8 {½-½ (40) Bacrot,E (2678)-McShane,L (2672) Batumi 2018}) 9... Rb8 {[%emt 0:02:13]} 10. g3 {[%emt 0:03:14]} b4 {[%emt 0:05:12]} 11. cxb4 $146 {[%emt 0:23:25]} ({Predecessor:} 11. Bh3 Be7 12. O-O bxc3 13. bxc3 Nb6 14. Nd2 Na5 {0-1 (32) Ringoir,G (1960)-Mainka,R (2457) Bad Zwesten 2006}) 11... cxd4 {[%emt 0:05:08]} 12. Nexd4 {[%emt 0:01:08]} Bxb4+ {[%emt 0:01:26]} 13. Kf2 {[%emt 0:00:41]} Nxd4 {[%emt 0:06:56]} 14. Bxd4 {[%emt 0:08:32]} Bc5 {[%emt 0:08:52]} 15. b3 {[%emt 0:14:02]} Qb6 {[%emt 0:03:11]} 16. Rc1 {[%emt 0:01:57]} a5 {[%emt 0:06:05]} (16... O-O $11 {keeps the balance.}) 17. Kg2 {[%emt 0:13:36]} Bxd4 {[%emt 0:09:29]} 18. Nxd4 {[%emt 0:02:27]} Ba6 {[%emt 0:11:09]} (18... O-O $14) 19. Rc6 {[%emt 0:01:41]} Bxf1+ {[%emt 0:00:44]} 20. Rxf1 {[%emt 0:00:08]} Qb4 {[%emt 0:06:40]} (20... Qb7 $142 21. Qd2 O-O) 21. a3 {[%emt 0:08:18]} Qb7 {[%emt 0:07:15]} 22. Qh5 $2 {[%emt 0:01:03]} (22. Qd2 $18) 22... O-O $16 {[%emt 0:01:51]} 23. Rfc1 {[%emt 0:01:43]} Rfc8 {[%emt 0:02:59]} 24. f5 {[%emt 0:04:45]} g6 {[%emt 0:04:42]} 25. fxg6 {[%emt 0:01:04]} hxg6 {[%emt 0:00:03]} 26. Qg5 {[%emt 0:00:52]} Nf8 {[%emt 0:05:00]} 27. h4 {[%emt 0:01:30]} Nh7 {[%emt 0:00:49]} 28. Qg4 {[%emt 0:01:41]} Rxc6 {[%emt 0:00:45]} 29. Rxc6 {[%emt 0:01:56]} Rc8 {[%emt 0:00:17]} 30. Rd6 {[%emt 0:00:35]} a4 {[%emt 0:01:21]} 31. h5 {[%emt 0:01:06]} axb3 {[%emt 0:04:26]} 32. hxg6 {[%emt 0:05:26]} b2 {[%emt 0:00:15]} 33. gxh7+ {[%emt 0:02:47]} Kh8 {[%emt 0:00:09]} 34. Qg5 {[%emt 0:00:34]} b1=Q {[%emt 0:01:05]} 35. Qf6+ {[%emt 0:00:30]} Kxh7 {[%emt 0:00:02]} 36. Qh4+ {[%emt 0:00:05]} Kg8 {[%emt 0:00:30]} 37. Rd8+ {[%emt 0:00:17]} Rxd8 {[%emt 0:00:09]} 38. Qxd8+ {[%emt 0:00:04]} Kg7 {[%emt 0:01:40]} 39. Qf6+ {[%emt 0:00:08]} Kh7 {[%emt 0:00:18]} 40. Qh4+ {[%emt 0:00:07]} Kg6 {[%emt 0:00:31]} 41. Qf6+ {[%emt 0:30:43]} Kh5 {[%emt 0:31:09]} 42. Qh4+ {[%emt 0:02:02]} Kg6 {[%emt 0:00:07]} 43. Qf6+ {[%emt 0:00:05]} Kh7 {[%emt 0:00:33]} 1/2-1/2

[Event "22nd Hoogeveen Open 2018"]
[Site "Hoogeveen"]
[Date "2018.10.27"]
[Round "9"]
[White "Elgersma, Onno"]
[Black "Vroombout, Enrico"]
[Result "1/2-1/2"]
[ECO "B90"]
[WhiteElo "2223"]
[BlackElo "2132"]
[Annotator "NA"]
[PlyCount "106"]
[EventDate "2018.10.20"]
[EventType "swiss"]
[EventCountry "NED"]
[SourceTitle "playchess.com"]
[Source "ChessBase"]
[SourceQuality "1"]
[TimeControl "40/5400+30:1800+30"]

1. e4 {[%emt 0:00:00]} c5 {[%emt 0:00:00]} 2. Nf3 {[%emt 0:00:00]} d6 {[%emt 0:00:00]} 3. d4 {[%emt 0:00:03]} cxd4 {[%emt 0:00:00]} 4. Nxd4 {[%emt 0:00:05]} Nf6 {[%emt 0:00:00]} 5. Nc3 {[%emt 0:00:10]} a6 {[%emt 0:00:00]} 6. h3 {[%emt 0:00:18]} g6 {[%emt 0:00:00]} 7. g4 {[%emt 0:01:00]} Bg7 {[%emt 0:00:05]} 8. Be3 {[%emt 0:00:38] B90: Sicilian Najdorf: Unusual White 6th moves, 6 Be3 Ng4 and 6 Be3 e5} O-O {[%emt 0:00:17]} 9. Qd2 {[%emt 0:01:39]} b5 {[%emt 0:02:06] LiveBook: 5 Games} 10. Bg2 {[%emt 0:02:10]} Bb7 {[%emt 0:01:21]} 11. O-O {[%emt 0:04:16]} (11. a3 Nbd7 12. g5 Nh5 13. Bf3 Ne5 14. Bxh5 gxh5 15. O-O-O Rc8 {0-1 (41) Xiong,J (2656)-Shankland,S (2717) Montevideo 2018}) 11... Qc7 {[%emt 0:26:39]} 12. a4 $146 {[%emt 0:23:56]} e5 {[%emt 0:10:10]} 13. Nde2 {[%emt 0:04:59]} (13. Nb3 $11) 13... b4 {[%emt 0:02:35]} 14. Nd5 {[%emt 0:00:38]} Bxd5 {[%emt 0:20:21]} 15. exd5 {[%emt 0:00:07]} Nbd7 {[%emt 0:00:38]} 16. a5 {[%emt 0:05:03]} Rfc8 {[%emt 0:02:32]} 17. Rfc1 {[%emt 0:01:44]} Qc4 {[%emt 0:02:37]} 18. Ra4 $16 {[%emt 0:22:05]} Rab8 {[%emt 0:13:15]} 19. c3 {[%emt 0:10:48]} Qb5 {[%emt 0:00:18]} 20. Rxb4 {[%emt 0:00:26]} Qxa5 {[%emt 0:00:03]} 21. g5 {[%emt 0:01:46]} Ne8 {[%emt 0:01:57]} 22. Rxb8 {[%emt 0:01:33]} Rxb8 {[%emt 0:00:02]} 23. b4 {[%emt 0:02:13]} Qa4 {[%emt 0:02:09]} 24. Qb2 {[%emt 0:08:43]} a5 {[%emt 0:03:00]} 25. Ra1 {[%emt 0:02:56]} Qb5 {[%emt 0:00:07]} 26. Rb1 {[%emt 0:00:46]} Qc4 {[%emt 0:06:55]} 27. Ng3 {[%emt 0:02:02]} f5 {[%emt 0:04:00]} 28. gxf6 {[%emt 0:00:32]} Nexf6 {[%emt 0:00:08]} 29. Qb3 {[%emt 0:02:58]} Qxb3 {[%emt 0:00:20]} 30. Rxb3 {[%emt 0:00:05]} axb4 {[%emt 0:01:32]} 31. cxb4 {[%emt 0:00:18]} Rb5 {[%emt 0:00:15]} 32. Ne4 {[%emt 0:01:11]} Nxe4 {[%emt 0:00:10]} 33. Bxe4 {[%emt 0:00:04]} Nc5 {[%emt 0:01:03]} 34. Bxc5 {[%emt 0:00:51]} dxc5 {[%emt 0:00:04]} 35. d6 {[%emt 0:00:43]} Rxb4 {[%emt 0:00:43]} 36. d7 {[%emt 0:00:34]} Bf6 {[%emt 0:00:31]} 37. Bd5+ {[%emt 0:00:31]} Kg7 {[%emt 0:00:36]} 38. Rc3 {[%emt 0:00:24]} Rb5 {[%emt 0:01:24]} 39. Bc6 {[%emt 0:00:31]} Ra5 {[%emt 0:00:22]} 40. Rf3 {[%emt 0:00:21]} Ra1+ {[%emt 0:00:44]} 41. Kg2 {[%emt 0:30:08]} Rd1 {[%emt 0:30:21]} 42. Rc3 {[%emt 0:00:36]} Be7 {[%emt 0:00:00]} 43. Ra3 {[%emt 0:00:00]} Rd6 {[%emt 0:00:00]} 44. Bb5 {[%emt 0:00:00]} Kf6 {[%emt 0:00:00]} 45. Ra8 {[%emt 0:00:00]} Kf5 {[%emt 0:00:00]} 46. Re8 {[%emt 0:00:00]} Bh4 {[%emt 0:00:00]} 47. Rc8 {[%emt 0:00:00]} Rd2 {[%emt 0:00:00]} 48. Rf8+ {[%emt 0:00:00]} Ke6 {[%emt 0:00:00]} 49. Re8+ {[%emt 0:00:00]} Kf7 {[%emt 0:00:00]} 50. Rxe5 {[%emt 0:00:00]} Rxf2+ {[%emt 0:00:00]} 51. Kh1 {[%emt 0:00:00]} Rc2 {[%emt 0:01:04]} 52. Rd5 {[%emt 0:00:00]} Bd8 {[%emt 0:00:05]} 53. Re5 {[%emt 0:00:00]} Be7 {[%emt 0:02:30]} 1/2-1/2

[Event "22nd Hoogeveen Open 2018"]
[Site "Hoogeveen"]
[Date "2018.10.27"]
[Round "9"]
[White "Konings, Frans"]
[Black "Sparenberg, Erik"]
[Result "1-0"]
[ECO "D45"]
[WhiteElo "2195"]
[BlackElo "2224"]
[Annotator "NA"]
[PlyCount "101"]
[EventDate "2018.10.20"]
[EventType "swiss"]
[EventCountry "NED"]
[SourceTitle "playchess.com"]
[Source "ChessBase"]
[SourceQuality "1"]
[TimeControl "40/5400+30:1800+30"]

1. c4 {[%emt 0:00:00]} Nf6 {[%emt 0:00:00]} 2. d4 {[%emt 0:00:02]} c6 {[%emt 0:00:00]} 3. Nf3 {[%emt 0:00:27]} d5 {[%emt 0:00:00]} 4. e3 {[%emt 0:00:10]} e6 {[%emt 0:00:07]} 5. Nc3 {[%emt 0:00:06]} Nbd7 {[%emt 0:00:06]} 6. Qc2 {[%emt 0:00:06]} Be7 {[%emt 0:00:48]} 7. b3 {[%emt 0:00:15]} O-O {[%emt 0:00:12]} 8. Bd3 {[%emt 0:00:05]} b6 {[%emt 0:03:29]} 9. O-O {[%emt 0:02:04] D45: Semi-Slav: 5 e3} Bb7 {[%emt 0:00:12] LiveBook: 155 Partien} 10. Rd1 {[%emt 0:01:04]} (10. Bb2 h6 11. Rad1 Qc7 12. Qe2 Rad8 13. Rfe1 Rfe8 14. Bb1 Bf8 15. Ne5 dxc4 16. Nxd7 Rxd7 17. bxc4 c5 18. d5 exd5 19. Nxd5 Nxd5 20. cxd5 {0-1 (29) Gelfand,B (2703)-Ivanchuk,V (2710) Jerusalem 2018}) 10... c5 {[%emt 0:06:14]} 11. Bb2 {[%emt 0:01:30]} cxd4 {[%emt 0:00:18]} 12. Nxd4 {[%emt 0:01:33]} Ne5 $146 {[%emt 0:11:37]} ({Predecessor:} 12... Rc8 13. e4 dxc4 14. Bxc4 Qc7 15. f3 Bd6 16. g3 Qb8 17. Kh1 Ne5 18. Be2 Bb4 19. a3 Bxc3 20. Bxc3 Neg4 21. Rdc1 Nxe4 22. Qb2 Nxg3+ {0-1 (22) Schlichtmann,G (2213)-Krause,T (2186) Oldenburg 2000}) 13. Be2 {[%emt 0:03:40]} Rc8 {[%emt 0:06:13]} 14. Rac1 {[%emt 0:02:26]} Bd6 {[%emt 0:07:16]} 15. h3 {[%emt 0:07:13]} a6 {[%emt 0:07:18]} ({Of course not} 15... dxc4 $6 16. Ndb5 $16) 16. Nf3 {[%emt 0:09:46]} Qc7 {[%emt 0:10:54]} (16... Qe7 $11 {keeps the balance.}) 17. Qd2 {[%emt 0:07:41]} Qe7 {[%emt 0:22:14]} 18. cxd5 {[%emt 0:05:19]} exd5 {[%emt 0:00:36]} 19. Nd4 {[%emt 0:01:48]} Bb4 {[%emt 0:01:22]} 20. Nf5 {[%emt 0:09:36]} Qe6 {[%emt 0:01:21]} 21. Ng3 {[%emt 0:03:30]} Ne4 {[%emt 0:06:55]} 22. Ngxe4 {[%emt 0:00:35]} dxe4 {[%emt 0:00:02]} 23. a3 {[%emt 0:02:33]} Be7 {[%emt 0:01:36]} 24. Nd5 {[%emt 0:01:22]} Rxc1 {[%emt 0:06:45]} 25. Nxe7+ $16 {[%emt 0:00:11]} ({Much weaker is} 25. Bxc1 Bg5 $11) 25... Qxe7 {[%emt 0:00:01]} 26. Rxc1 {[%emt 0:04:45]} Qg5 {[%emt 0:02:41]} 27. h4 {[%emt 0:08:20]} Qf5 {[%emt 0:00:02]} 28. Qd4 {[%emt 0:01:13]} f6 {[%emt 0:01:24]} 29. Rc7 {[%emt 0:02:01]} Ba8 {[%emt 0:02:20]} 30. Bc4+ {[%emt 0:05:35]} Nxc4 {[%emt 0:01:03]} 31. bxc4 {[%emt 0:00:20]} Qe6 {[%emt 0:01:28]} 32. h5 {[%emt 0:00:36]} h6 {[%emt 0:00:29]} 33. Rd7 {[%emt 0:01:09]} Qg4 {[%emt 0:00:48]} 34. Bc3 {[%emt 0:04:31]} Qxh5 {[%emt 0:00:33]} 35. Qxb6 {[%emt 0:01:52]} Qg4 {[%emt 0:00:33]} 36. Qd6 {[%emt 0:02:01]} h5 {[%emt 0:00:28]} 37. Bb4 {[%emt 0:01:58]} Rc8 {[%emt 0:00:33]} 38. c5 {[%emt 0:03:46]} Bc6 {[%emt 0:00:30]} 39. Re7 {[%emt 0:01:18]} h4 {[%emt 0:00:26]} 40. Kh2 {[%emt 0:00:43]} Qf5 {[%emt 0:00:34]} 41. Bc3 {[%emt 0:35:45]} h3 {[%emt 0:06:40]} 42. Qg3 {[%emt 0:00:00]} g5 {[%emt 0:05:55]} 43. Qxh3 {[%emt 0:00:00]} Qxh3+ {[%emt 0:03:41]} 44. gxh3 {[%emt 0:00:00]} f5 {[%emt 0:00:34]} 45. Rg7+ {[%emt 0:00:00]} Kf8 {[%emt 0:00:06]} 46. Rxg5 {[%emt 0:00:00]} Bd7 {[%emt 0:00:07]} 47. Bd4 {[%emt 0:00:00]} Rc6 {[%emt 0:01:44]} 48. h4 {[%emt 0:00:00]} Rc8 {[%emt 0:00:31]} 49. h5 {[%emt 0:00:00]} Rc6 {[%emt 0:01:07]} 50. Kg3 {[%emt 0:00:00]} Kf7 {[%emt 0:00:12]} 51. Rg7+ {[%emt 0:00:00]} 1-0